Cogmind - Beta 14 @@@ ROGUE MODE // 2024.08.25 @ 19:48:20 Player: Lunace Result: Destroyed by G-47 Trooper with Particle Gun Performance ------------- Evolutions (0) 0 Regions Visited (4) 800 Robots Destroyed (36) 180 Value Destroyed (745) 745 Prototype IDs (4) 80 Alien Tech Used (0) 0 Bonus (7) 7 TOTAL SCORE: 1812 Bonus ------- Follower Combat Kills 7 Cogmind --------- Core Integrity 0/250 Matter 142/300 Energy 10/250 System Corruption 0% Temperature Warm (175) Movement Rolling (95) Ox1 Location -9/Mines Parts ------- > --- POWER (1) -------- Ion Engine > --- PROPULSION (2) --- Wheel > --- UTILITY (2) ------ Disposable Heat Sink Light Armor Plating > --- WEAPON (2) ------- Light EM Pulse Cannon Light EM Pulse Cannon > --- INVENTORY (5) ---- Wheel Large Storage Unit Light Armor Plating Shield Generator Peak State ------------ > --- POWER ------------ Ion Engine > --- PROPULSION ------- Light Treads Light Treads > --- UTILITY ---------- Large Storage Unit Light Armor Plating > --- WEAPON ----------- Light EM Pulse Cannon Light EM Pulse Cannon > --- INVENTORY -------- Ion Engine Disposable Heat Sink Light Armor Plating Light Armor Plating Light Armor Plating Light Armor Plating Light Armor Plating Light Armor Plating Shield Generator Light EM Pulse Cannon Light EM Pulse Cannon Grenade Launcher Rocket Launcher Plasma Cutter [Rating: 11] Favorites ----------- Power Ion Engine Engine Ion Engine Propulsion Light Treads Treads Light Treads Wheel Wheel Utility Light Armor Plating Device Seismic Detector Storage Large Storage Unit Protection Light Armor Plating Weapon Light EM Pulse Cannon Energy Cannon Light EM Pulse Cannon Ballistic Gun Light Assault Rifle Launcher Grenade Launcher Build | -11 -10 -10 -10 -9 ------- Run | Yrd Mat Min Exi Min Slots Evolved . | . . . . . Power . | . . . . . Propulsion . | . . . . . Utility . | . . . . . Weapon . | . . . . . Parts Attached 33 | 8 8 1 1 15 Power 4 | 1 2 . . 1 Engine 4 | 1 2 . . 1 Core . | . . . . . Reactor . | . . . . . Propulsion 4 | 2 . . . 2 Treads 3 | 2 . . . 1 Leg . | . . . . . Wheel 1 | . . . . 1 Hover . | . . . . . Flight . | . . . . . Utility 11 | 3 2 . 1 5 Device 3 | 2 . . . 1 Storage 3 | 1 1 . 1 . Processor . | . . . . . Hackware . | . . . . . Protection 5 | . 1 . . 4 Artifact . | . . . . . Weapon 14 | 2 4 1 . 7 Energy Gun . | . . . . . Energy Cannon 8 | . 3 1 . 4 Ballistic Gun 3 | 2 . . . 1 Ballistic Cannon . | . . . . . Launcher 3 | . 1 . . 2 Special Weapon . | . . . . . Impact Weapon . | . . . . . Slashing Weapon . | . . . . . Piercing Weapon . | . . . . . Special Melee Weapon . | . . . . . Unidentified Prototypes . | . . . . . Parts Lost 12 | . . . . 12 Power 1 | . . . . 1 Propulsion 3 | . . . . 3 Utility 3 | . . . . 3 Weapon 5 | . . . . 5 Highest Loss Streak 9 | . . . . 9 To Critical Strikes . | . . . . . Average Slot Usage (%) 98 | . 99 100 100 92 Engine 13 | . 13 14 14 12 Treads 26 | . 28 28 28 19 Storage 13 | . 14 14 14 12 Protection 13 | . 12 14 14 13 Energy Cannon 21 | . 13 26 28 24 Ballistic Gun 5 | . 14 . . 1 Peak Build Rating 11 | 9 10 11 11 11 Average Rating 9 | 6 8 10 11 10 On Entrance 7 | . 7 9 11 11 Naked Turns . | . . . . . Heaviest Build 36 | 12 36 36 36 36 Greatest Support 40 | 40 40 40 40 40 Greatest Overweight (x) 3 | . . . . 3 Average Overweight (x) . | . . . . 1 Largest Inventory Capacity 15 | 8 15 15 15 15 Average Capacity 13 | 7 11 15 15 13 Most Carried 15 | 2 13 15 15 15 Average Carried 10 | 1 7 13 15 10 Final Capacity 15 | 8 15 15 15 5 Final Carried 15 | 2 13 15 15 4 Class Distribution -------------------- 100% | Mutant Dominant Class ---------------- Mutant | -10/Materials Mutant | -10/Mines Mutant | -10/Exiles Mutant | -9/Mines Resources | -11 -10 -10 -10 -9 ----------- Run | Yrd Mat Min Exi Min Matter Collected 682 | 263 187 100 . 132 Remotely . | . . . . . Salvage Created 902 | 85 400 292 . 125 Parts 60 | 10 34 14 . 2 Haulers Intercepted 1 | . 1 . . . Recyclers Shooed . | . . . . . Parts Field Recycled . | . . . . . Retrieved Matter . | . . . . . Parts Self-Destructed . | . . . . . Prevented . | . . . . . Kills | -11 -10 -10 -10 -9 ------- Run | Yrd Mat Min Exi Min Combat Hostiles Destroyed 40 | . 10 12 . 18 Guns 4 | . 3 . . 1 Cannons 11 | . 1 7 . 3 AOE 25 | . 6 5 . 14 Classes Destroyed 9 | 1 6 . . 2 Worker 2 | . 2 . . . Builder 1 | . 1 . . . Tunneler 5 | 4 1 . . . Hauler 1 | . 1 . . . Watcher 3 | . 3 . . . Swarmer 11 | . 3 8 . . Grunt 12 | . 7 4 . 1 Demolisher 1 | . . . . 1 Assembled 16 | . . . . 16 Best Kill Streak 14 | 2 5 7 . 14 Combat Bots Only 14 | . 3 6 . 14 Max Kills in Single Turn 4 | 1 4 2 . 4 Gunslinging . | . . . . . Exploded 4 | . 2 2 . 4 Melee . | . . . . . Uniques/NPCs Destroyed . | . . . . . Combat | -11 -10 -10 -10 -9 -------- Run | Yrd Mat Min Exi Min Hostile Shots Fired 113 | . 24 15 . 74 Missed 27 | . 8 7 . 12 Damage Taken 1708 | . 197 95 . 1416 Core 263 | . 43 8 . 212 Absorbed by Shields . | . . . . . Core Remaining (%) 100 | 100 . . . . Volleys Fired 92 | 4 37 14 . 37 Largest 2 | 2 2 2 . 2 Hottest 112 | 40 112 112 . 112 Shots Fired 154 | 8 70 26 . 50 Gun 69 | 8 52 . . 9 Cannon 64 | . 14 24 . 26 Launcher 21 | . 4 2 . 15 Special . | . . . . . Kinetic 69 | 8 52 . . 9 Thermal . | . . . . . Explosive 21 | . 4 2 . 15 Electromagnetic 64 | . 14 24 . 26 Robot Hit Streak 6 | 5 6 6 . 5 Robot Miss Streak 6 | . 6 4 . 3 Penetration Max . | . . . . . Secondary Targets . | . . . . . Shots Hit Robots 81 | 5 38 12 . 26 Core Hits 74 | 4 25 12 . 33 Critical Kills 1 | . 1 . . . Critical Parts Destroyed . | . . . . . Critical Strikes 1 | . 1 . . . Destroy 1 | . 1 . . . Melee Attacks . | . . . . . Impact . | . . . . . Slashing . | . . . . . Piercing . | . . . . . Sneak Attacks . | . . . . . Combat Hostiles . | . . . . . Follow-up Attacks . | . . . . . Damage Inflicted 3403 | 64 1320 542 . 1477 Guns 513 | 64 300 . . 149 Cannons 792 | . 168 307 . 317 Explosions 2098 | . 852 235 . 1011 Melee . | . . . . . Ramming . | . . . . . Kinetic 513 | 64 300 . . 149 Thermal 447 | . 344 103 . . Explosive 1651 | . 508 132 . 1011 Electromagnetic 792 | . 168 307 . 317 Impact . | . . . . . Slashing . | . . . . . Piercing . | . . . . . Highest Corruption . | . . . . . Average Corruption . | . . . . . Corruption Purged . | . . . . . Corruption Blocked . | . . . . . Overload Shots . | . . . . . Overflow Damage 225 | . 126 20 . 79 Projectiles 15 | . . 15 . . Explosions 210 | . 126 5 . 79 Melee . | . . . . . Knockbacks . | . . . . . Impact . | . . . . . Kinetic . | . . . . . Secondary . | . . . . . Self-Inflicted Damage 175 | . 30 24 . 121 Shots 6 | . 1 1 . 4 Rammed . | . . . . . Targets Rammed . | . . . . . Kicked . | . . . . . Crushed . | . . . . . Highest Temperature 249 | . 195 249 . 238 Average Temperature 65 | . 39 85 . 75 Received Heat Transfer 390 | . 93 9 . 288 Siege Activations . | . . . . . Robots Corrupted . | . . . . . Combat Hostiles . | . . . . . Parts Fried 2 | . . 1 . 1 Impact Corruptions . | . . . . . Robots Melted . | . . . . . Combat Hostiles . | . . . . . Parts Melted . | . . . . . Heat Transferred 300 | . 200 100 . . Parts Sabotaged . | . . . . . Parts Stolen . | . . . . . Parts Stripped . | . . . . . Power Chain Reactions 3 | . 1 2 . . Alert | -11 -10 -10 -10 -9 ------- Run | Yrd Mat Min Exi Min Peak Influence 301 | 20 200 301 . 35 Initial 39 | . 13 39 . . Average 91 | 8 67 164 . 3 Maximum Alert Level 1 | . 1 1 . . Low Security (%) 94 | 100 98 87 . 100 Level 1 5 | . 1 12 . . Level 2 . | . . . . . Level 3 . | . . . . . Level 4 . | . . . . . Level 5 . | . . . . . High Security . | . . . . . Max Security . | . . . . . Squads Dispatched 1 | . 1 . . . Investigation . | . . . . . Extermination . | . . . . . Reinforcement 1 | . 1 . . . Assault . | . . . . . Garrison . | . . . . . Intercept . | . . . . . Searches Triggered . | . . . . . Construction Impeded . | . . . . . Haulers Reinforced . | . . . . . Active Scanning Responses . | . . . . . Cargo Convoy Interrupts . | . . . . . Stealth | -11 -10 -10 -10 -9 --------- Run | Yrd Mat Min Exi Min Distress Signals 1 | . 1 . . . Communications Jammed . | . . . . . Distress Signals . | . . . . . Times Spotted 55 | . 19 12 . 24 Peak Tracking Total 13 | . 3 3 . 13 Tactical Retreats 2 | . . . . 2 Traps | -11 -10 -10 -10 -9 ------- Run | Yrd Mat Min Exi Min Traps Triggered 1 | . 1 . . . Indirectly . | . . . . . Trap Hack Attempts . | . . . . . Triggered . | . . . . . Disarmed . | . . . . . Reprogrammed . | . . . . . Reused . | . . . . . Traps Extracted . | . . . . . Installed . | . . . . . Triggered . | . . . . . Machines | -11 -10 -10 -10 -9 ---------- Run | Yrd Mat Min Exi Min Machines Disabled 3 | . 2 1 . . Max in Single Turn 1 | . 1 1 . . Machines Repaired . | . . . . . Machines Dismantled . | . . . . . Machines Sabotaged . | . . . . . Overloaded Fab Kills . | . . . . . Hacking | -11 -10 -10 -10 -9 --------- Run | Yrd Mat Min Exi Min Machines Accessed 8 | . 7 . 1 . Terminals 5 | . 5 . . . Fabricators . | . . . . . Repair Stations . | . . . . . Recycling Units 2 | . 2 . . . Scanalyzers . | . . . . . Garrison Access . | . . . . . Total Hacks 25 | . 24 . 1 . Successful 13 | . 12 . 1 . Failed 12 | . 12 . . . Catastrophic 2 | . 2 . . . Database Lockouts . | . . . . . Manual 13 | . 13 . . . Terminals 18 | . 18 . . . Fabricators . | . . . . . Repair Stations . | . . . . . Recycling Units 6 | . 6 . . . Scanalyzers . | . . . . . Garrison Access . | . . . . . Terminal Hacks 8 | . 7 . 1 . Record 1 | . . . 1 . Prototype ID Bank 3 | . 3 . . . Branch Access Points 1 | . 1 . . . Unreport Threat 3 | . 3 . . . Fabricator Hacks . | . . . . . Repair Station Hacks . | . . . . . Recycling Unit Hacks 1 | . 1 . . . Retrieve Components 1 | . 1 . . . Scanalyzer . | . . . . . Garrison Access Hacks . | . . . . . Unauthorized Hacks 4 | . 4 . . . Terminals 2 | . 2 . . . Botnet 2 | . 2 . . . Fabricators . | . . . . . Repair Stations . | . . . . . Recycling Units 2 | . 2 . . . Monitor 1 | . 1 . . . Recyclers 1 | . 1 . . . Scanalyzers . | . . . . . Garrison Access . | . . . . . Data Cores Recovered . | . . . . . Used . | . . . . . Hacking Detections 6 | . 6 . . . Full Trace Events . | . . . . . Feedback Events . | . . . . . Feedback Blocked . | . . . . . Robot Schematics Acquired . | . . . . . Robots Built . | . . . . . Authchips . | . . . . . Time . | . . . . . Total Robot Build Rating . | . . . . . Part Schematics Acquired . | . . . . . Parts Built . | . . . . . Authchips . | . . . . . Time . | . . . . . Total Part Build Rating . | . . . . . Parts Repaired . | . . . . . Time . | . . . . . Parts Recycled . | . . . . . Recycled Matter . | . . . . . Retrieved Matter . | . . . . . Retrieved Components . | . . . . . Parts Scanalyzed . | . . . . . Part Schematics Acquired . | . . . . . Parts Damaged . | . . . . . Bothacking | -11 -10 -10 -10 -9 ------------ Run | Yrd Mat Min Exi Min Used RIF Installer . | . . . . . Robots Hacked . | . . . . . Non-combat . | . . . . . Combat . | . . . . . Robot Hacks Applied . | . . . . . Relay Couplers Released . | . . . . . Fabnet Peak Effective % . | . . . . . Robots Rewired . | . . . . . Allies Hacked . | . . . . . Hacks Repelled . | . . . . . Allies | -11 -10 -10 -10 -9 -------- Run | Yrd Mat Min Exi Min Total Allies 1 | . . 1 . . Largest Group 1 | . . 1 . . Highest-Rated Group 31 | . . 31 . . Highest-Rated Ally 31 | . . 31 . . Total Orders . | . . . . . Ally Attacks 10 | . . 10 . . Total Damage 151 | . . 151 . . Kills 1 | . . 1 . . Allies Corrupted . | . . . . . Allies Melted . | . . . . . Intel | -11 -10 -10 -10 -9 ------- Run | Yrd Mat Min Exi Min Robot Analysis Total . | . . . . . Derelict Logs Recovered 2 | . . 1 . 1 Drone Launches . | . . . . . Drone Recoveries . | . . . . . Exploration | -11 -10 -10 -10 -9 ------------- Run | Yrd Mat Min Exi Min Turns Passed 2593 | 144 872 911 284 382 Spaces Moved 1379 | 72 451 516 177 163 Core 2 | 2 . . . . Treads 1321 | 70 451 516 177 107 Legs . | . . . . . Wheels 56 | . . . . 56 Hover . | . . . . . Flight . | . . . . . Fastest Speed 50 | 50 160 160 160 95 Average Speed 159 | 156 160 160 160 157 Slowest Speed 240 | 160 160 160 160 240 Overloaded Moves . | . . . . . Propulsion Burnouts . | . . . . . Robots Hopped . | . . . . . Cave-ins Triggered . | . . . . . Exploration Rate (%) 55 | 6 73 97 59 44 Regions Visited 4 Branch Regions 3 Pre-discovered Areas 2 | . . . 1 1 Known Exits Taken 1 | . 1 . . . Unknown Exits Taken 3 | 1 . 1 1 . Scrap Searched 3 | . . 2 . 1 Spaces Dug . | . . . . . Terrain Destroyed 157 | . 44 27 . 86 Melee . | . . . . . Projectile . | . . . . . AOE 157 | . 44 27 . 86 Terrain Rammed . | . . . . . Walls Destroyed . | . . . . . Machines Disabled . | . . . . . Actions | -11 -10 -10 -10 -9 --------- Run | Yrd Mat Min Exi Min Total 1622 | 92 540 575 178 237 Wait 82 | 6 16 43 . 17 Move 1375 | 71 450 515 176 163 Hop . | . . . . . Pick Up 24 | 2 17 2 . 3 Fast Attach 14 | 8 5 . . 1 Attach 10 | . . . . 10 Detach 1 | . 1 . . . Swap 9 | . 3 1 1 4 Drop 15 | 1 11 . 1 2 Fire 92 | 4 37 14 . 37 Melee . | . . . . . Ram . | . . . . . Kick . | . . . . . Crush . | . . . . . Escape Stasis . | . . . . . Rewire . | . . . . . Trap . | . . . . . Miscellaneous . | . . . . . Route ------- -11/Scrapyard -10/Materials (discovered 3 exits: *Mat x2 / *Min) -10/Mines (discovered 3 exits: *Mat x2 / *Exi) -10/Exiles -9/Mines History --------- Turn | Location | Event 9 | -11/Scrapyard | Discovered new exit (range 16) 145 | -11/Scrapyard | Entered Materials 315 | -10/Materials | Build established: Mutant 444 | -10/Materials | Discovered new exit (range 6) 493 | -10/Materials | Identified exit to Mines 661 | -10/Materials | Discovered new exit (range 4) 1017 | -10/Materials | Entered Mines 1032 | -10/Mines | Met a Derelict bent on vengeance 1042 | -10/Mines | Identified exit to Materials 1129 | -10/Mines | Received a Mining Laser from a helpful Derelict 1206 | -10/Mines | Received a Rocket Launcher from a helpful Derelict 1735 | -10/Mines | Discovered exit to Materials (range 13) 1877 | -10/Mines | A weapon hastily lodged in a ceiling crevice suddenly fell to the ground 1922 | -10/Mines | Deemed a non-threat by the Exiles lab entrance 1922 | -10/Mines | Discovered new exit (range 5) 1928 | -10/Mines | Entered Exiles 1968 | -10/Exiles | Met 8R-AWN 1996 | -10/Exiles | Met EX-HEX 2077 | -10/Exiles | Met EX-DEC 2111 | -10/Exiles | Met EX-BIN 2138 | -10/Exiles | Learned location of Zion (-6) 2192 | -10/Exiles | Discovered new exit (range 14) 2212 | -10/Exiles | Entered Mines 2343 | -9/Mines | Assembled infested the area 2384 | -9/Mines | Core integrity fell below 50% 2390 | -9/Mines | Destroyed 14 combat bots 2400 | -9/Mines | Core integrity fell below 20% 2441 | -9/Mines | Lost 9 parts (1p2n2u4w) 2594 | -9/Mines | Destroyed by G-47 Trooper with Particle Gun Last Messages --------------- 02499_ Acquired 23 matter. 02502_ Acquired 10 matter. 02511_ R-06 Scavenger collects Lgt. Assault Rifle. 02515_ R-06 Scavenger collects Flight Unit. 02518_ R-06 Scavenger collects Lgt. Ion Engine. 02522_ R-06 Scavenger collects Flight Unit. 02523_ Acquired 23 matter. 02547_ Lgt. EM Pulse Cannon destroyed. 02552_ as-10731 destroyed. 02562_ U-05 Engineer lays Concrete. 02564_ U-05 Engineer builds a Wall. 02565_ Lgt. Armor Plating destroyed. 02567_ U-05 Engineer lays Concrete. 02569_ U-05 Engineer builds a Wall. 02569_ U-05 Engineer lays Concrete. 02587_ Heat Sink fried. 02587_ G-34 Mercenary destroyed. 02592_ Imp. Treads destroyed. 02592_ Critical hit (Burn: +37). Map ----- +----------------------------------------------------+ | ??????????????????????????### ##?????????????? | | ????????????????????????#### ##????????????? | | ????????????????????????# ## ###???????????? | | ????????????????????????# # ##???????????? | | ???????????????????????### ## !# #???????????? | | ???????????????????????# # ####???????????? | | ???????????????????????## ### ## ##??????????? | | ?????????????????????### # ## #??????????? | | ?????????##??????????# # # ## #??????????? | | ????????## ##????????# ## ## # ##??????????? | | ????????# #????????# ## # #???????????? | | ????????# #????????? ## # # ##??????????? | | ????????# #?????#### ## # # ## #??????????? | | ?????????# ##???## ## # ## #?????????? | | ?????????# ##### # # # #?????????? | | ?????????# ## # ## # # #?????????? | | ????????## ## ## # # #????????? | | ???????## ### # ##????????? | | ???????# * ## ####????????? | | ???????# #### =| " # ##???????? | | ???????## #???# * = ###?????? | | ????????##????# # ### ????? | | ??????????##### #####?## ###???? | | ??????????# #??????## #???? | | ??????????# #?####### %% ??? | | ??????????# #####?# @## ## *#??? | | ??????????# #?????# =% ##### =%=??? | | ??????????# #?????## g ##????### #???? | | ?????????? #??????###########????????# ???? | | ?????????## ##??????????????????????????#?????? | | ??????????# #?????????????????????????????????? | | ?????????? ?????????????????????????????????? | | ??????????"" ?????????????????????????????????? | | ??????????"" ?????????????????????????????????? | | ?????????""" ?????????????????????????????????? | | ?????????? ?????????????????????????????????? | | ???????????? ?????????????????????????????????? | | ???????????? ?????????????????????????????????? | | ???????????? ?????????????????????????????????? | | ???????????? ?????????????????????????????????? | | ??????????????????????????????????????????????? | | ??????????????????????????????????????????????? | | | | | | | | | | | | | | | | | +----------------------------------------------------+ Best States ------------- Heat Dissipation 25 Coolant Potential 50 Energy Generation 10 Energy Capacity 250 Matter Stores 300 Matter Capacity 300 Sight Range 16 Terrain Scan Range 16 Terrain Scan Density 10 Armor Coverage 150 Evasion (%) 40 Recoil Reduction 2 Item Schematics ----------------- None Robot Schematics ------------------ None Fabricated ------------ Nothing Alien Tech Used ----------------- None Achievements -------------- None Challenges ------------ None Game ------ Seed CarbideLobotomyScreen Manual? 0 Play Time 00:19:50 Cumulative 311.0 hours Start 2024.08.25 @ 19:08:17 End 2024.08.25 @ 19:48:20 Sessions 1 Manual Loads 0 Difficulty Rogue Special Mode None Game No. 313 Rogue 308 Adventurer 5 Explorer 0 Win Type - Total 5 Types 4/0/0/1/0/0/0/0/0 Lore% 69 Gallery% 80 Achievement% 66 Wizard Run 0 Options --------- Layout 1 ASCII 0 Keyboard 0 Movement Mouse Keybinds 0 Fullscreen 1 Font 24/Terminus Map View 50x35 Zoom Use 0% Tactical HUD 1 Map Filters NONE Filters NONE Steam 1 RUN: d7ee0edc-0528-4051-81d7-abd8c5727d65